Cogmind - Beta 9.6 @@@ ROGUE MODE // 2020.08.26 @ 09:41:55 Player: Sandwich Result: Destroyed by G-67 Veteran with Plasma Rifle Performance ------------- Evolutions (7) 3500 Regions Visited (15) 3000 Robots Destroyed (135) 675 Value Destroyed (5301) 5301 Prototype IDs (27) 540 Alien Tech Used (0) 0 Bonus (1072) 1072 TOTAL SCORE: 14088 Bonus ------- High Alert Combat Kills 121 Follower Combat Kills 703 Met Data Miner 300 Friendly Fire -52 Cogmind --------- Core Integrity 0/1300 Matter 140/300 Energy 63/100 System Corruption 9% Temperature Cool (364) Movement Core (50) Location -3/Research Parts ------- > --- POWER (3) -------- (None) > --- PROPULSION (4) --- Compact Wheel > --- UTILITY (7) ------ Advanced Cryofiber Web Advanced Target Analyzer > --- WEAPON (7) ------- (None) > --- INVENTORY (4) ---- Improved Energy Well (600) Advanced Energy Well (0) Improved Force Field Nova Cannon Peak State ------------ > --- POWER ------------ Particle Reactor Particle Reactor Particle Reactor > --- PROPULSION ------- Flexi-carbon Leg Wheel Compact Wheel Centrium Wheel > --- UTILITY ---------- Advanced Cryofiber Web Advanced Coolant Injector Large Storage Unit Improved Energy Well Advanced Energy Well Kinecellerator Improved Force Field > --- WEAPON ----------- Heavy Disruptor Cannon Nova Cannon Tri-rail Accelerator Compact Mass Driver Compact Mass Driver > --- INVENTORY -------- Improved Energy Well Makeshift System Shield Nova Cannon Nova Cannon Advanced Datajack AD-0RF's Magmablaster [Rating: 137] Favorites ----------- Power Enhanced Nuclear Core Engine Heavy Ion Engine Power Core Enhanced Nuclear Core Reactor Particle Reactor Propulsion Medium Treads Treads Medium Treads Leg Aluminum Leg Wheel Centrium Wheel Hover Unit Airjet Utility Medium Storage Unit Device Improved Cooling System Storage Medium Storage Unit Processor Targeting Computer Hackware Advanced Hacking Suite Protection Improved Weapon Shielding Weapon Improved Assault Rifle Energy Gun Phase Gun Energy Cannon Heavy Disruptor Cannon Ballistic Gun Improved Assault Rifle Ballistic Cannon Compact Mass Driver Special Weapon Improved Remote Datajack Slashing Weapon Makeshift Axe Build | -11 -10 -9 -9 -8 -8 -7 -7 -7 -7 -6 -6 -5 -4 -4 -3 ------- Run | Scr Mat Mat Min Mat Sto Fac Low Low Dat Pro Fac Fac Fac Upp Res Slots Evolved 14 | . . 2 . 2 . 2 . . . . 2 2 2 . 2 Power 2 | . . . . . . . . . . . . . . . 2 Propulsion 2 | . . . . 1 . . . . . . . . 1 . . Utility 5 | . . . . 1 . 1 . . . . 1 1 1 . . Weapon 5 | . . 2 . . . 1 . . . . 1 1 . . . Parts Attached 179 | 6 3 10 4 17 9 6 1 5 . 2 12 24 29 12 39 Power 19 | 1 . 1 . 3 1 1 . . . . 1 3 2 2 4 Engine 7 | 1 . 1 . 1 1 . . . . . . 2 . 1 . Core 8 | . . . . 2 . 1 . . . . 1 1 2 1 . Reactor 4 | . . . . . . . . . . . . . . . 4 Propulsion 45 | 2 1 2 1 6 3 . . 2 . 1 2 6 7 4 8 Treads 10 | . . . . . 3 . . 2 . 1 2 1 1 . . Leg 8 | . . 2 1 1 . . . . . . . 2 . . 2 Wheel 21 | 2 1 . . . . . . . . . . 3 6 4 5 Hover 6 | . . . . 5 . . . . . . . . . . 1 Flight . | . . . . . . . . . . . . . . . . Utility 62 | 1 2 2 . 3 3 3 . 2 . . 6 9 9 4 18 Device 29 | . . . . 2 1 2 . . . . 1 3 7 2 11 Storage 11 | 1 2 . . . . . . 1 . . . 1 1 1 4 Processor 6 | . . . . . . . . . . . 1 2 1 . 2 Hackware 2 | . . . . . . . . . . . . . . 1 1 Protection 14 | . . 2 . 1 2 1 . 1 . . 4 3 . . . Artifact . | . . . . . . . . . . . . . . . . Weapon 53 | 2 . 5 3 5 2 2 1 1 . 1 3 6 11 2 9 Energy Gun 5 | . . . . . . . . . . . . 2 3 . . Energy Cannon 9 | . . . . . . . . . . . . . 6 . 3 Ballistic Gun 29 | 2 . 5 3 5 2 2 1 1 . 1 3 1 . 1 2 Ballistic Cannon 5 | . . . . . . . . . . . . 2 . . 3 Launcher . | . . . . . . . . . . . . . . . . Special Weapon 4 | . . . . . . . . . . . . 1 2 . 1 Impact Weapon . | . . . . . . . . . . . . . . . . Slashing Weapon 1 | . . . . . . . . . . . . . . 1 . Piercing Weapon . | . . . . . . . . . . . . . . . . Special Melee Weapon . | . . . . . . . . . . . . . . . . Unidentified Prototypes 9 | . . 2 . . 1 1 . . . . . . . . 5 Parts Lost 83 | . 1 1 . 1 5 . . 5 . 4 7 18 9 18 14 Power 6 | . . . . . . . . . . . . 3 . 3 . Propulsion 24 | . 1 1 . 1 2 . . 2 . 1 1 5 . 5 5 Utility 21 | . . . . . 1 . . 2 . . 1 4 4 5 4 Weapon 32 | . . . . . 2 . . 1 . 3 5 6 5 5 5 Highest Loss Streak 14 | . 1 1 . 1 2 . . 5 . 2 4 8 5 14 7 Average Slot Usage (%) 83 | . 96 98 100 99 96 99 100 98 100 91 76 47 65 60 75 Engine 2 | . 14 11 11 5 5 3 . . . . . . . . . Core 3 | . . . . 3 3 3 7 7 7 7 5 3 3 3 . Reactor 1 | . . . . . . . . . . . . . . . 12 Treads 10 | . . . . . 20 23 23 22 23 21 18 7 2 . . Leg 2 | . . 8 22 6 . . . . . . . 2 . . 2 Wheel 4 | . 25 11 . . . . . . . . . 2 15 15 9 Hover 1 | . . . . 20 4 . . . . . . . . . . Device 9 | . . . . 10 12 14 15 13 7 7 6 6 11 8 16 Storage 9 | . 26 15 11 9 9 7 7 7 15 15 13 5 4 6 8 Processor 2 | . . . . . . . . . . . 1 3 10 8 3 Protection 5 | . . 6 11 7 4 7 7 6 7 7 6 4 2 . . Energy Cannon 1 | . . . . . . . . . . . . . 7 . 4 Ballistic Gun 23 | . 28 44 44 36 35 38 38 38 38 31 23 2 . . 2 Ballistic Cannon 1 | . . . . . . . . . . . . 2 . . 10 Naked Turns 40 | . . . . . . . . . . . . 40 . . . Heaviest Build 150 | 11 19 33 33 43 37 41 39 46 46 47 55 64 86 35 150 Greatest Support 93 | 26 26 23 23 36 93 84 84 84 84 84 78 76 64 64 48 Greatest Overweight (x) 9 | . 1 3 1 3 1 . . 1 . . 1 2 4 1 9 Average Overweight (x) . | . . 1 1 . . . . . . . . . 1 . 3 Largest Inventory Capacity 10 | 6 8 8 8 8 8 8 8 8 8 8 8 10 4 8 10 Average Capacity 7 | 5 7 8 8 8 8 8 8 8 8 8 8 6 4 5 6 Most Carried 8 | 3 8 8 8 8 8 8 8 8 4 4 8 6 4 8 7 Average Carried 6 | 1 6 7 8 7 6 7 8 7 4 3 7 3 2 5 5 Final Capacity 8 | 6 8 8 8 8 8 8 8 8 8 8 8 4 4 4 4 Final Carried 8 | 3 7 8 8 8 7 8 8 4 4 4 4 4 3 4 4 Class Distribution -------------------- 37% | Tank 22% | Mutant 9% | Gunner 7% | Commander-Tank 5% | Scavenger-Tank 4% | Scavenger-Gunner 3% | Scavenger-Mutant 3% | Generator-Executioner Dominant Class ---------------- Mutant | -10/Materials Tank | -9/Materials Tank | -9/Mines Tank | -8/Materials Scavenger-Tank | -8/Storage Commander-Tank | -7/Factory Tank | -7/Lower Caves Tank | -7/Lower Caves Tank | -7/Data Miner Tank | -6/Proximity Caves Tank | -6/Factory Mutant | -5/Factory Mutant | -4/Factory Mutant | -4/Upper Caves Generator-Executioner | -3/Research Resources | -11 -10 -9 -9 -8 -8 -7 -7 -7 -7 -6 -6 -5 -4 -4 -3 ----------- Run | Scr Mat Mat Min Mat Sto Fac Low Low Dat Pro Fac Fac Fac Upp Res Matter Collected 5467 | 246 62 345 95 428 808 267 57 251 . 151 902 699 106 159 891 Remotely 469 | . . . . . . 267 57 145 . . . . . . . Salvage Created 6519 | . 91 592 127 702 1354 108 207 343 . 97 1036 769 106 76 911 Parts 294 | . 9 35 10 38 67 4 7 6 . 3 51 21 4 3 36 Haulers Intercepted 9 | . . 1 . 4 2 . . . . . 2 . . . . Recyclers Shooed 2 | . . 1 . . . . . . . . 1 . . . . Parts Field Recycled . | . . . . . . . . . . . . . . . . Retrieved Matter . | . . . . . . . . . . . . . . . . Parts Self-Destructed 28 | . . . . . . . 7 6 . 9 . . . 6 . Prevented . | . . . . . . . . . . . . . . . . Kills | -11 -10 -9 -9 -8 -8 -7 -7 -7 -7 -6 -6 -5 -4 -4 -3 ------- Run | Scr Mat Mat Min Mat Sto Fac Low Low Dat Pro Fac Fac Fac Upp Res Combat Hostiles Destroyed 112 | . 4 14 5 7 23 2 5 7 . 3 11 18 2 3 8 Melee 2 | . . . . . . . . . . . . . . 2 . Guns 89 | . 4 14 5 7 23 2 5 7 . 3 11 5 1 1 1 Cannons 19 | . . . . . . . . . . . . 12 . . 7 AOE 1 | . . . . . . . . . . . . . 1 . . Classes Destroyed 12 | . 2 3 . 4 . . . . . . 3 . . . . Worker 1 | . . . . . . . . . . . 1 . . . . Builder 3 | . . . . . . . . . . . 1 . . . 2 Hauler 9 | . . 1 . 4 2 . . . . . 2 . . . . Recycler 6 | . . . . 1 . . . . . . 1 . . . 4 Watcher 4 | . . . . 2 1 . . . . . . 1 . . . Swarmer 23 | . 3 3 3 . . . 2 2 . 2 . 5 . 3 . Grunt 47 | . 1 7 2 2 13 1 2 2 . 1 5 10 . . 1 Brawler 3 | . . 1 . . . . . 2 . . . . . . . Duelist 4 | . . . . 1 1 1 . . . . 1 . . . . Sentry 22 | . . 3 . 3 9 . 1 1 . . 3 1 . . 1 Hunter 2 | . . . . 1 . . . . . . . . . . 1 Programmer 10 | . . . . . . . . . . . 2 2 2 . 4 Best Kill Streak 8 | . 2 4 3 3 8 2 5 7 . 2 4 3 1 3 3 Combat Bots Only 8 | . 2 4 3 2 8 2 5 7 . 2 3 3 1 3 2 Max Kills in Single Turn 3 | . 1 2 2 1 2 1 2 2 . 1 1 1 1 1 3 Gunslinging 1 | . . 1 1 . 1 . 1 1 . . . . . . . Exploded 1 | . . . . . . . . . . . . . 1 . . Melee 1 | . . . . . . . . . . . . . . 1 . Uniques/NPCs Destroyed 1 | . . . . . . . . . . . . . . . 1 AD-0RF (-3/Research) Combat | -11 -10 -9 -9 -8 -8 -7 -7 -7 -7 -6 -6 -5 -4 -4 -3 -------- Run | Scr Mat Mat Min Mat Sto Fac Low Low Dat Pro Fac Fac Fac Upp Res Damage Taken 15617 | . 204 528 95 673 1171 77 37 753 . 571 1388 3226 1657 2266 2971 Core 3652 | . 42 93 . 232 144 6 . 94 . 19 119 551 321 729 1302 Absorbed by Shields 1353 | . . . . . . . . . . . . . . . 1353 Core Remaining (%) 63 | 100 83 . 76 . 31 . . . . 83 86 44 . 8 . Volleys Fired 366 | . 16 30 6 41 54 3 3 11 . 10 44 98 5 10 35 Largest 6 | . 2 4 4 4 4 5 5 5 . 5 4 3 2 2 6 Hottest 519 | . 40 83 83 89 97 125 125 135 . 140 127 113 118 118 519 Shots Fired 1109 | . 32 120 24 149 212 15 15 55 . 42 152 149 6 14 124 Gun 943 | . 32 120 24 149 212 15 15 55 . 42 152 64 5 14 44 Cannon 157 | . . . . . . . . . . . . 78 1 . 78 Launcher . | . . . . . . . . . . . . . . . . Special 9 | . . . . . . . . . . . . 7 . . 2 Kinetic 1049 | . 32 120 24 149 212 15 15 55 . 42 152 119 . 4 110 Thermal 30 | . . . . . . . . . . . . 9 5 10 6 Explosive . | . . . . . . . . . . . . . . . . Electromagnetic 30 | . . . . . . . . . . . . 21 1 . 8 Robot Hit Streak 37 | . 4 15 11 10 37 7 11 13 . 4 19 17 7 4 12 Robot Miss Streak 9 | . 3 5 1 4 2 2 2 4 . 4 9 3 . 2 7 Penetration Max 1 | . . . . . 1 . . 1 . 1 1 1 . . 1 Secondary Targets 26 | . 1 6 2 1 5 1 2 5 . 1 1 1 . . . Max Gunslinging Chain 1 | . 1 1 1 1 1 1 1 1 . 1 1 1 . . . Shots Hit Robots 796 | . 16 76 17 94 165 11 9 48 . 34 117 111 5 16 77 Core Hits 346 | . 7 31 8 35 58 5 12 26 . 10 70 42 5 5 32 Critical Hits 20 | . . . . . . . . 1 . 1 5 4 . . 9 Critical Kills 6 | . . . . . . . . . . . 2 1 . . 3 Critical Parts Destroyed 12 | . . . . . . . . 1 . . 3 3 . . 5 Melee Attacks 12 | . . . . . . . . . . . . . . 12 . Impact . | . . . . . . . . . . . . . . . . Slashing 12 | . . . . . . . . . . . . . . 12 . Piercing . | . . . . . . . . . . . . . . . . Sneak Attacks . | . . . . . . . . . . . . . . . . Combat Hostiles . | . . . . . . . . . . . . . . . . Follow-up Attacks . | . . . . . . . . . . . . . . . . Damage Inflicted 15334 | . 112 809 159 999 2541 191 216 717 . 600 2018 3246 540 424 2762 Guns 10616 | . 112 809 159 999 2541 191 216 717 . 600 2018 1308 135 163 648 Cannons 3924 | . . . . . . . . . . . . 1851 . . 2073 Explosions 344 | . . . . . . . . . . . . 65 279 . . Melee 261 | . . . . . . . . . . . . . . 261 . Ramming 139 | . . . . . . . . . . . . 13 126 . . Kinetic 13514 | . 112 809 159 999 2541 191 216 717 . 600 2018 2640 . 24 2488 Thermal 696 | . . . . . . . . . . . . 57 414 139 86 Explosive 65 | . . . . . . . . . . . . 65 . . . Electromagnetic 659 | . . . . . . . . . . . . 471 . . 188 Impact . | . . . . . . . . . . . . . . . . Slashing 261 | . . . . . . . . . . . . . . 261 . Piercing . | . . . . . . . . . . . . . . . . Highest Corruption 11 | . . 4 4 . 5 . . . . . 2 8 11 11 9 Average Corruption 5 | . . 2 4 . 4 . . . . . 1 7 8 10 3 Corruption Purged 1 | . . . . . . . . . . . . . . 1 . Effects 82 | . . 7 6 . . . . . . . 3 20 12 26 8 Message Errors 14 | . . 3 2 . . . . . . . 1 3 1 3 1 Matter Fused 16 | . . . 1 . . . . . . . . 4 2 6 3 Heat Flow Errors 9 | . . 1 2 . . . . . . . 1 2 1 2 . Energy Discharges 6 | . . . . . . . . . . . . . 2 3 1 Parts Rejected 3 | . . . . . . . . . . . . 1 . 2 . Data Loss (minor) 6 | . . . . . . . . . . . . 2 3 1 . Alerts 1 | . . . . . . . . . . . . . 1 . . Misdirections 6 | . . . . . . . . . . . . . 1 5 . Targeting Errors 21 | . . 3 1 . . . . . . . 1 8 1 4 3 Overload Shots . | . . . . . . . . . . . . . . . . Overflow Damage 294 | . . . . . . . . . . . . 42 198 8 46 Projectiles 76 | . . . . . . . . . . . . 30 . . 46 Explosions 210 | . . . . . . . . . . . . 12 198 . . Melee 8 | . . . . . . . . . . . . . . 8 . Knockbacks 49 | . . . . . . . . . . . . 25 . . 24 Impact . | . . . . . . . . . . . . . . . . Kinetic 47 | . . . . . . . . . . . . 24 . . 23 Secondary 2 | . . . . . . . . . . . . 1 . . 1 Self-Inflicted Damage 176 | . . . . . . . . . . . . 6 170 . . Shots 1 | . . . . . . . . . . . . . 1 . . Rammed 31 | . . . . . . . . . . . . 3 28 . . Targets Rammed 31 | . . . . . . . . . . . . 3 28 . . Kicked . | . . . . . . . . . . . . . . . . Crushed . | . . . . . . . . . . . . . . . . Highest Temperature 1260 | . 12 263 215 539 63 . . 10 . 12 171 211 147 84 1260 Average Temperature 165 | . 9 75 69 160 14 . . 2 . 7 68 44 49 37 387 Received Heat Transfer 3305 | . 18 180 39 198 576 27 9 162 . 105 327 1071 36 216 341 Effects 61 | . . 1 . 15 . . . . . . . . . . 45 Shutdowns 13 | . . . . 3 . . . . . . . . . . 10 Energy Bleed 4 | . . 1 . 2 . . . . . . . . . . 1 Interference 17 | . . . . 5 . . . . . . . . . . 12 Matter Decay 3 | . . . . 1 . . . . . . . . . . 2 Short Circuit 4 | . . . . 1 . . . . . . . . . . 3 Damage (minor) 9 | . . . . 1 . . . . . . . . . . 8 Damage (major) 4 | . . . . . . . . . . . . . . . 4 Damage (core) 7 | . . . . 2 . . . . . . . . . . 5 Siege Activations . | . . . . . . . . . . . . . . . . Robots Corrupted 2 | . . . . . . . . . . . . 2 . . . Combat Hostiles 1 | . . . . . . . . . . . . 1 . . . Parts Fried 9 | . . . . . . . . . . . . 8 . . 1 Impact Corruptions . | . . . . . . . . . . . . . . . . Robots Melted . | . . . . . . . . . . . . . . . . Combat Hostiles . | . . . . . . . . . . . . . . . . Parts Melted 5 | . . . . 1 . 1 . . . . . . 1 2 . Heat Transferred 1016 | . . . . . . . . . . . . 149 285 296 286 Parts Sabotaged . | . . . . . . . . . . . . . . . . Parts Stolen . | . . . . . . . . . . . . . . . . Parts Stripped . | . . . . . . . . . . . . . . . . Power Chain Reactions . | . . . . . . . . . . . . . . . . Missiles Intercepted . | . . . . . . . . . . . . . . . . Alert | -11 -10 -9 -9 -8 -8 -7 -7 -7 -7 -6 -6 -5 -4 -4 -3 ------- Run | Scr Mat Mat Min Mat Sto Fac Low Low Dat Pro Fac Fac Fac Upp Res Peak Influence 677 | . 120 362 238 261 677 308 . . . . 340 243 143 . 230 Average Influence 144 | . 37 183 162 123 381 239 . . . . 76 111 88 . 76 Maximum Alert Level 2 | . . 1 1 1 2 1 . . . . 1 1 . . 1 Low Security (%) 74 | 100 100 59 79 83 17 24 . . . . 94 81 100 . 97 Level 1 20 | . . 40 20 16 29 75 . . . . 5 18 . . 2 Level 2 5 | . . . . . 53 . . . . . . . . . . Level 3 . | . . . . . . . . . . . . . . . . Level 4 . | . . . . . . . . . . . . . . . . Level 5 . | . . . . . . . . . . . . . . . . High Security . | . . . . . . . . . . . . . . . . Max Security . | . . . . . . . . . . . . . . . . Squads Dispatched 27 | . 1 . . . 3 1 . 1 . . 7 7 2 . 5 Investigation 3 | . . . . . 2 . . . . . . . 1 . . Extermination 8 | . . . . . . 1 . . . . 2 1 1 . 3 Reinforcement 6 | . 1 . . . . . . . . . 2 2 . . 1 Assault 1 | . . . . . . . . 1 . . . . . . . Garrison 9 | . . . . . 1 . . . . . 3 4 . . 1 Intercept . | . . . . . . . . . . . . . . . . Construction Impeded 1 | . . . . . . . . . . . . 1 . . . Haulers Reinforced 2 | . . . . . . . . . . . 1 1 . . . Stealth | -11 -10 -9 -9 -8 -8 -7 -7 -7 -7 -6 -6 -5 -4 -4 -3 --------- Run | Scr Mat Mat Min Mat Sto Fac Low Low Dat Pro Fac Fac Fac Upp Res Distress Signals 10 | . 1 . . 2 1 . . . . . 1 2 . . 3 Communications Jammed . | . . . . . . . . . . . . . . . . Distress Signals . | . . . . . . . . . . . . . . . . Times Spotted 228 | . 8 24 5 13 28 5 5 8 . 8 22 47 7 17 31 Peak Tracking Total 12 | . 4 5 3 3 5 3 4 8 . 4 4 8 5 12 11 Tactical Retreats 20 | . . . . . 1 . . . . . 2 8 . 6 3 Traps | -11 -10 -9 -9 -8 -8 -7 -7 -7 -7 -6 -6 -5 -4 -4 -3 ------- Run | Scr Mat Mat Min Mat Sto Fac Low Low Dat Pro Fac Fac Fac Upp Res Traps Triggered 11 | . . 2 . 1 4 . . . . . . . 3 . 1 Indirectly . | . . . . . . . . . . . . . . . . Trap Hack Attempts . | . . . . . . . . . . . . . . . . Triggered . | . . . . . . . . . . . . . . . . Disarmed . | . . . . . . . . . . . . . . . . Reprogrammed . | . . . . . . . . . . . . . . . . Reused . | . . . . . . . . . . . . . . . . Traps Extracted . | . . . . . . . . . . . . . . . . Installed . | . . . . . . . . . . . . . . . . Triggered 1 | . . . . . . . . 1 . . . . . . . Machines | -11 -10 -9 -9 -8 -8 -7 -7 -7 -7 -6 -6 -5 -4 -4 -3 ---------- Run | Scr Mat Mat Min Mat Sto Fac Low Low Dat Pro Fac Fac Fac Upp Res Machines Disabled 12 | . . 1 . . 2 . . . . . 2 2 3 . 2 Max in Single Turn 3 | . . 1 . . 1 . . . . . 1 1 3 . 1 Garrison Access 1 | . . . . . . . . . . . . . 1 . . Machines Sabotaged . | . . . . . . . . . . . . . . . . Garrisons Compromised . | . . . . . . . . . . . . . . . . Overloaded Fab Kills . | . . . . . . . . . . . . . . . . Fab Network Shutdowns . | . . . . . . . . . . . . . . . . Hacking | -11 -10 -9 -9 -8 -8 -7 -7 -7 -7 -6 -6 -5 -4 -4 -3 --------- Run | Scr Mat Mat Min Mat Sto Fac Low Low Dat Pro Fac Fac Fac Upp Res Machines Accessed 28 | . 1 3 . 1 7 1 1 . 4 . 2 1 6 . 1 Terminals 16 | . 1 3 . 1 7 . . . . . 2 1 1 . . Fabricators 1 | . . . . . . . . . . . . . 1 . . Repair Stations 1 | . . . . . . . . . . . . . 1 . . Recycling Units 2 | . . . . . . . . . . . . . 2 . . Scanalyzers . | . . . . . . . . . . . . . . . . Garrison Access 3 | . . . . . . 1 . . . . . . 1 . 1 Total Hacks 88 | . 1 8 . 2 23 2 1 . 27 . 4 4 12 . 4 Successful 56 | . . 4 . 2 13 . 1 . 27 . 2 2 5 . . Failed 31 | . 1 4 . . 9 2 . . . . 2 2 7 . 4 Catastrophic 6 | . . . . . . 2 . . . . . . 2 . 2 Database Lockouts 2 | . . . . . 2 . . . . . . . . . . Manual 31 | . 1 7 . 2 15 . . . . . 1 4 1 . . Terminals 45 | . 1 8 . 2 23 . . . . . 4 4 3 . . Fabricators 2 | . . . . . . . . . . . . . 2 . . Repair Stations 1 | . . . . . . . . . . . . . 1 . . Recycling Units 4 | . . . . . . . . . . . . . 4 . . Scanalyzers . | . . . . . . . . . . . . . . . . Garrison Access 8 | . . . . . . 2 . . . . . . 2 . 4 Terminal Hacks 39 | . . 1 . . 7 . 1 . 27 . 2 1 . . . Record 11 | . . . . . . . . . 11 . . . . . . Part Schematic 7 | . . . . . . . . . 7 . . . . . . Robot Schematic 6 | . . . . . . . . . 6 . . . . . . Prototype ID Bank 7 | . . . . . 3 . . . 3 . . 1 . . . Open Door 3 | . . . . . 2 . 1 . . . . . . . . Branch Access Points 2 | . . 1 . . 1 . . . . . . . . . . Unreport Threat 2 | . . . . . . . . . . . 2 . . . . Zone Layout 1 | . . . . . 1 . . . . . . . . . . Fabricator Hacks 1 | . . . . . . . . . . . . . 1 . . Load Schematic 1 | . . . . . . . . . . . . . 1 . . Repair Station Hacks 1 | . . . . . . . . . . . . . 1 . . Refit 1 | . . . . . . . . . . . . . 1 . . Recycling Unit Hacks 1 | . . . . . . . . . . . . . 1 . . Retrieve Components 1 | . . . . . . . . . . . . . 1 . . Scanalyzer . | . . . . . . . . . . . . . . . . Garrison Access Hacks 1 | . . . . . . . . . . . . . 1 . . Seal Access 1 | . . . . . . . . . . . . . 1 . . Unauthorized Hacks 13 | . . 3 . 2 6 . . . . . . 1 1 . . Terminals 13 | . . 3 . 2 6 . . . . . . 1 1 . . Track 3 | . . 1 . 1 1 . . . . . . . . . . Botnet 9 | . . 2 . 1 4 . . . . . . 1 1 . . Operators 1 | . . . . . 1 . . . . . . . . . . Fabricators . | . . . . . . . . . . . . . . . . Repair Stations . | . . . . . . . . . . . . . . . . Recycling Units . | . . . . . . . . . . . . . . . . Scanalyzers . | . . . . . . . . . . . . . . . . Garrison Access . | . . . . . . . . . . . . . . . . Data Cores Recovered . | . . . . . . . . . . . . . . . . Used . | . . . . . . . . . . . . . . . . Hacking Detections 21 | . 1 3 . 1 7 1 . . . . 2 1 4 . 1 Full Trace Events 1 | . . . . . . . . . . . . . 1 . . Feedback Events . | . . . . . . . . . . . . . . . . Feedback Blocked . | . . . . . . . . . . . . . . . . Robot Schematics Acquired 6 | . . . . . . . . . 6 . . . . . . Robots Built . | . . . . . . . . . . . . . . . . Matter . | . . . . . . . . . . . . . . . . Time . | . . . . . . . . . . . . . . . . Total Robot Build Rating . | . . . . . . . . . . . . . . . . Part Schematics Acquired 7 | . . . . . . . . . 7 . . . . . . Parts Built . | . . . . . . . . . . . . . . . . Matter . | . . . . . . . . . . . . . . . . Time . | . . . . . . . . . . . . . . . . Total Part Build Rating . | . . . . . . . . . . . . . . . . Parts Repaired . | . . . . . . . . . . . . . . . . Time . | . . . . . . . . . . . . . . . . Parts Recycled . | . . . . . . . . . . . . . . . . Recycled Matter . | . . . . . . . . . . . . . . . . Retrieved Matter . | . . . . . . . . . . . . . . . . Retrieved Components . | . . . . . . . . . . . . . . . . Parts Scanalyzed . | . . . . . . . . . . . . . . . . Part Schematics Acquired . | . . . . . . . . . . . . . . . . Parts Damaged . | . . . . . . . . . . . . . . . . Bothacking | -11 -10 -9 -9 -8 -8 -7 -7 -7 -7 -6 -6 -5 -4 -4 -3 ------------ Run | Scr Mat Mat Min Mat Sto Fac Low Low Dat Pro Fac Fac Fac Upp Res Used RIF Installer . | . . . . . . . . . . . . . . . . Robots Hacked . | . . . . . . . . . . . . . . . . Non-combat . | . . . . . . . . . . . . . . . . Combat . | . . . . . . . . . . . . . . . . Robot Hacks Applied . | . . . . . . . . . . . . . . . . Relay Couplers Released . | . . . . . . . . . . . . . . . . Robots Rewired 3 | . . . . . . . . 2 . . 1 . . . . Allies Hacked . | . . . . . . . . . . . . . . . . Hacks Repelled . | . . . . . . . . . . . . . . . . Allies | -11 -10 -9 -9 -8 -8 -7 -7 -7 -7 -6 -6 -5 -4 -4 -3 -------- Run | Scr Mat Mat Min Mat Sto Fac Low Low Dat Pro Fac Fac Fac Upp Res Total Allies 18 | . . . 1 . 10 . 2 2 . 1 1 . . 1 . Largest Group 10 | . . . 1 1 10 7 3 2 . 1 2 . . 1 1 Highest-Rated Group 173 | . . . 31 31 173 125 62 36 . 94 133 . . 125 125 Highest-Rated Ally 125 | . . . 31 31 29 29 31 20 . 94 94 . . 125 125 Total Orders . | . . . . . . . . . . . . . . . . Ally Attacks 135 | . . . 3 8 16 38 3 6 . 14 34 . . . 13 Total Damage 3380 | . . . 42 144 174 550 15 89 . 538 1319 . . . 509 Kills 22 | . . . . 1 3 3 . . . 5 4 . . . 6 Allies Corrupted 1 | . . . . . 1 . . . . . . . . . . Allies Melted . | . . . . . . . . . . . . . . . . Intel | -11 -10 -9 -9 -8 -8 -7 -7 -7 -7 -6 -6 -5 -4 -4 -3 ------- Run | Scr Mat Mat Min Mat Sto Fac Low Low Dat Pro Fac Fac Fac Upp Res Robot Analysis Total . | . . . . . . . . . . . . . . . . Derelict Logs Recovered 6 | . . . 1 . . . 2 1 . 1 . . . 1 . Drone Launches . | . . . . . . . . . . . . . . . . Drone Recoveries . | . . . . . . . . . . . . . . . . Exploration | -11 -10 -9 -9 -8 -8 -7 -7 -7 -7 -6 -6 -5 -4 -4 -3 ------------- Run | Scr Mat Mat Min Mat Sto Fac Low Low Dat Pro Fac Fac Fac Upp Res Turns Passed 9781 | 46 341 636 460 550 713 766 619 743 122 323 1028 1191 759 454 1030 Spaces Moved 6062 | 35 283 358 284 435 294 444 379 433 77 181 506 698 651 438 566 Core 176 | 1 . . . . . . . . . . . 79 . 60 36 Treads 2513 | . . . . . 203 444 379 433 77 181 506 290 . . . Legs 640 | . . 141 284 66 . . . . . . . 148 . . 1 Wheels 2273 | 34 283 217 . . . . . . . . . 181 651 378 529 Hover 460 | . . . . 369 91 . . . . . . . . . . Flight . | . . . . . . . . . . . . . . . . Fastest Speed 50 | 50 80 80 150 52 56 160 160 160 160 155 152 50 80 50 50 Average Speed 125 | 86 89 114 150 70 128 160 160 160 160 157 158 120 98 84 124 Slowest Speed 270 | 90 90 150 150 240 160 160 160 180 160 160 180 200 120 100 270 Overloaded Moves . | . . . . . . . . . . . . . . . . Propulsion Burnouts . | . . . . . . . . . . . . . . . . Robots Hopped . | . . . . . . . . . . . . . . . . Cave-ins Triggered . | . . . . . . . . . . . . . . . . Exploration Rate (%) 36 | 3 33 31 67 47 49 11 56 68 68 37 12 18 18 52 12 Regions Visited 15 Branch Regions 7 Pre-discovered Areas 2 | . . . . . . . . . 1 . . . . 1 . Known Exits Taken 2 | . . 1 . . . . 1 . . . . . . . . Unknown Exits Taken 13 | 1 1 . 1 1 1 1 . 1 1 1 1 1 1 1 . Scrap Searched 10 | . . . 1 . . . 3 1 . 2 . . . 3 . Spaces Dug . | . . . . . . . . . . . . . . . . Terrain Destroyed 144 | . . . . . . . . . . . 7 28 61 . 48 Melee . | . . . . . . . . . . . . . . . . Projectile 63 | . . . . . . . . . . . 7 8 . . 48 AOE 81 | . . . . . . . . . . . . 20 61 . . Actions | -11 -10 -9 -9 -8 -8 -7 -7 -7 -7 -6 -6 -5 -4 -4 -3 --------- Run | Scr Mat Mat Min Mat Sto Fac Low Low Dat Pro Fac Fac Fac Upp Res Total 7506 | 47 344 524 307 604 504 493 385 453 76 194 631 895 758 492 799 Wait 675 | 4 33 104 10 84 144 30 2 . . . 51 64 25 14 110 Move 6047 | 34 282 357 283 434 293 443 378 432 76 180 505 697 650 437 566 Hop . | . . . . . . . . . . . . . . . . Pick Up 72 | 3 7 11 . 11 1 5 . 1 . 2 9 3 7 5 7 Fast Attach 102 | 6 1 3 . 5 4 2 . . . . 5 18 18 9 31 Attach 45 | . 1 4 . 6 4 1 . 5 . 2 5 5 6 3 3 Detach 8 | . . . . . 2 . . . . . . 2 1 . 3 Swap 32 | . 1 3 4 6 1 3 1 . . . 2 1 5 . 5 Drop 94 | . 3 12 4 17 1 6 1 . . . 8 4 13 2 23 Fire 366 | . 16 30 6 41 54 3 3 11 . 10 44 98 5 10 35 Melee 12 | . . . . . . . . . . . . . . 12 . Ram 31 | . . . . . . . . . . . . 3 28 . . Kick . | . . . . . . . . . . . . . . . . Crush . | . . . . . . . . . . . . . . . . Escape Stasis 8 | . . . . . . . . . . . . . . . 8 Rewire 14 | . . . . . . . . 4 . . 2 . . . 8 Trap . | . . . . . . . . . . . . . . . . Miscellaneous . | . . . . . . . . . . . . . . . . Route ------- -11/Scrapyard -10/Materials (discovered 2 exits: *Mat / [*Min]) -9/Materials -9/Mines -8/Materials (discovered 2 exits: *Fac / *Sto) -8/Storage (discovered 2 exits: *Fac / Rec) -7/Factory (discovered 2 exits: *Fac / *Low) -7/Lower Caves -7/Lower Caves -7/Data Miner -6/Proximity Caves -6/Factory (discovered 2 exits: *Fac / Low) -5/Factory (discovered 2 exits: *Fac / [*Upp]) -4/Factory -4/Upper Caves -3/Research History --------- Turn | Location | Event 15 | -11/Scrapyard | Discovered new exit (range 15) 47 | -11/Scrapyard | Entered Materials 124 | -10/Materials | Discovered new exit (range 15) 303 | -10/Materials | Build established: Mutant 372 | -10/Materials | Discovered new exit (range 10) 388 | -10/Materials | Entered another Materials area 388 | -9/Materials | Evolved 2 slots: Weapon x2 796 | -9/Materials | Identified exit to Mines 916 | -9/Materials | Build established: Tank 1024 | -9/Materials | Entered Mines 1114 | -9/Mines | Met a Derelict bent on vengeance 1190 | -9/Mines | Learned Materials emergency access door positions 1286 | -9/Mines | Discovered new exit (range 7) 1287 | -9/Mines | Received a Mining Laser from a helpful Derelict 1484 | -9/Mines | Entered Materials 1484 | -8/Materials | Accompanied by 1 ally 1484 | -8/Materials | Evolved 2 slots: Propulsion x1, Utility x1 1939 | -8/Materials | Discovered new exit (range 5) 2017 | -8/Materials | Discovered new exit (range 6) 2034 | -8/Materials | Entered Storage 2157 | -8/Storage | Core integrity fell below 50% 2238 | -8/Storage | Destroyed 8 combat bots 2450 | -8/Storage | Central database locked down 2608 | -8/Storage | Discovered new exit (range 16) 2648 | -8/Storage | Garrison activated, responded to threat 2680 | -8/Storage | Identified exit to Recycling 2683 | -8/Storage | Assisted by bots powering up and referring to "LRC-V3" 2747 | -8/Storage | Entered Factory 2747 | -7/Factory | Accompanied by 7 allies 2747 | -7/Factory | Evolved 2 slots: Utility x1, Weapon x1 2982 | -7/Factory | Build established: Commander-Tank 3349 | -7/Factory | Discovered new exit (range 10) 3446 | -7/Factory | Discovered new exit (range 12) 3513 | -7/Factory | Entered Lower Caves 3513 | -7/Lower Caves | Accompanied by 3 allies 3641 | -7/Lower Caves | Encountered a Warlord checkpoint 3650 | -7/Lower Caves | Identified exit to Lower Caves 3758 | -7/Lower Caves | Build established: Tank 3828 | -7/Lower Caves | Attracted the attention of an 0b10 checkpoint 4101 | -7/Lower Caves | A Commander dispatched an escort 4132 | -7/Lower Caves | Entered another Lower Caves area 4132 | -7/Lower Caves | Accompanied by 2 allies 4133 | -7/Lower Caves | Commander's escort returned to base 4133 | -7/Lower Caves | Commander's escort returned to base 4271 | -7/Lower Caves | Encountered a Warlord checkpoint 4730 | -7/Lower Caves | Attracted the attention of an 0b10 outpost 4788 | -7/Lower Caves | Learned Factory trap positions 4793 | -7/Lower Caves | Destroyed 7 combat bots 4795 | -7/Lower Caves | Lost 5 parts (2n2u1w) 4855 | -7/Lower Caves | Discovered new exit (range 11) 4875 | -7/Lower Caves | Entered Data Miner 4875 | -7/Data Miner | Discovered new exit (range 6) 4906 | -7/Data Miner | Met Data Miner 4938 | -7/Data Miner | Learned location of Section 7 (-2) 4938 | -7/Data Miner | Acquired the access code to Warlord's prototype stash 4962 | -7/Data Miner | Received God Mode back door access code from Data Miner 4997 | -7/Data Miner | Entered Proximity Caves 5053 | -6/Proximity Caves | Escorted by Enhanced Grunt 5135 | -6/Proximity Caves | Spotted B-75 Beast 5149 | -6/Proximity Caves | Allies destroyed B-75 Beast 5203 | -6/Proximity Caves | Attracted the attention of an 0b10 checkpoint 5239 | -6/Proximity Caves | Learned Factory terminal intel 5289 | -6/Proximity Caves | Discovered new exit (range 5) 5320 | -6/Proximity Caves | Entered Factory 5320 | -6/Factory | Accompanied by 1 ally 5320 | -6/Factory | Evolved 2 slots: Utility x1, Weapon x1 5321 | -6/Factory | Identified exit to Lower Caves 5322 | -6/Factory | Loaded intel: 85 trap records 5323 | -6/Factory | Loaded intel: 21 terminal locations 5362 | -6/Factory | Garrison activated, responded to threat 5675 | -6/Factory | Found Hvy. Reflective Plating 5679 | -6/Factory | Found Hvy. Reflective Plating 5682 | -6/Factory | Found Hvy. Reflective Plating 5702 | -6/Factory | Spotted B-75 Beast 6214 | -6/Factory | Lost 4 parts (1n1u2w) 6238 | -6/Factory | Discovered new exit (range 14) 6348 | -6/Factory | Entered another Factory area 6348 | -5/Factory | Evolved 2 slots: Utility x1, Weapon x1 6475 | -5/Factory | Build established: Mutant 6516 | -5/Factory | Discovered new exit (range 15) 6725 | -5/Factory | Garrison activated, responded to threat 6919 | -5/Factory | Lost 8 parts (1p2n3u2w) 7501 | -5/Factory | Garrison activated, responded to threat 7520 | -5/Factory | Core integrity fell below 50% 7523 | -5/Factory | Discovered new exit (range 15) 7539 | -5/Factory | Entered another Factory area 7539 | -4/Factory | Evolved 2 slots: Propulsion x1, Utility x1 7568 | -4/Factory | Lost 5 parts (1p1n3w) 7910 | -4/Factory | Incoming investigation squad redirected 8063 | -4/Factory | Lost 5 parts (3u2w) 8118 | -4/Factory | System corruption reached 10% 8128 | -4/Factory | Lost 3 parts (1u2w) 8255 | -4/Factory | Discovered new exit (range 9) 8298 | -4/Factory | Entered Upper Caves 8621 | -4/Upper Caves | Core integrity fell below 50% 8658 | -4/Upper Caves | Learned location of Testing (-3) 8665 | -4/Upper Caves | Lost 14 parts (2p4n3u5w) 8692 | -4/Upper Caves | Attracted the attention of an 0b10 checkpoint 8701 | -4/Upper Caves | Core integrity fell below 20% 8733 | -4/Upper Caves | Lost 4 parts (1p1n2u) 8748 | -4/Upper Caves | AD-0RF showed up to help 8750 | -4/Upper Caves | AD-0RF revealed a hidden path 8752 | -4/Upper Caves | Entered Research 8752 | -3/Research | Accompanied by 1 ally 8752 | -3/Research | Evolved 2 slots: Power x2 9277 | -3/Research | Build established: Generator-Executioner 9345 | -3/Research | Destroyed AD-0RF 9355 | -3/Research | Found Prototype Special Weapon 9369 | -3/Research | Core integrity fell below 50% 9734 | -3/Research | Garrison activated, responded to threat 9759 | -3/Research | Identified AD-0RF's Magmablaster 9778 | -3/Research | Core integrity fell below 20% 9782 | -3/Research | Destroyed by G-67 Veteran with Plasma Rifle Last Messages --------------- 09776_ Power failure averted by Adv. Cryofiber Web. 09776_ Dropped Particle Reactor. 09777_ Power failure averted by Adv. Cryofiber Web. 09777_ K-01 Serf collects debris. 09777_ Dropped Particle Reactor. 09777_ Broken Coil Gun destroyed. 09777_ Dropped Particle Reactor. 09778_ Overheating: Core damaged (-169). 09778_ Dropped Lrg. Storage Unit. 09778_ Dropped Com. Mass Driver. 09779_ Overheating: Matter decay (-23). 09779_ Dropped Nova Cannon. 09779_ O-32 Director destroyed. 09779_ Dropped Imp. Energy Well. 09779_ Com. Wheel destroyed. 09780_ Dropped AD-0RF's Magmablaster. 09781_ System corrupted: Energy discharge (-29). 09781_ Acquired 31 matter. 09781_ K-01 Serf collects debris. 09782_ Adv. Heat Sink destroyed. Map ----- +----------------------------------------------------+ | ?????????????????????????????????????????????# " | | ?????????????????????????????????????????????# " | | ?????????????????????????????????????????????# | | ??????????????????????????# ???????????????# | | ??????????????????????????# ???????????????# | | ????????????????????? ???# ??????????????# | | ????????????????????"" ???# ??????????????# | | ????????????????????"" ### ########+###### | | ?????????????????????" # | | ?????????????????????? + | | ??????????????????????? # | | ????????????????????????# | | ????????????????????????# #?#########+######### | | ????????????????????????# #??????# #???? | | ????????????????????????# ######## #???? | | ????????????????????????# # ""#???? | | ????????????????????????# # ""#???? | | ????????????????????????# # G#???? | | ????????????????????????# + ! ""#???? | | ???????????????###########+##### # ""##### | | ????????????#? """T"""/]*s # # ## | | ????????????# """ """!**ppg g # # ## | | ????????????# ]=|gg k# ########### | | ????????????# ! p"" # #?????????# | | ????????????# g""" # #?????????#### | | ????????????# @ g # #???????????## | | ????????????# # #???????????# | | ????????????# # #???????????# | | ????????????#################### #???????????# | | ???????????????????????????????# #???????????# | | ???????????????????????????????# #???????????#" | | ???????????????????????????????# #???????????#" | | ???????????????????????????????+ ????????????#" | | ???????????????????????????????? ????????????# | | ????????????????????????????????????????????????# | | ???????????????????????????????? ############## | | ?????????########??????????????? | | ?????????# #??????????????# | | ?????????# #??????????????# | | ?????????# #?????????????## | | ?????????# #?????????????#" ########### ## | | ??######## #?????????????## ##?????####+## | | ??# # #?????????????#" %######## | | ??# #/##+################## %% # | | ??# + + # * # | | ??# #### ##### # # ! | | ??# #??# #???# # + | | ??# #??# #???# #???#### # | | ??########??# #???# #####??# # * ! | | ??????????### ##### # ?# # | +----------------------------------------------------+ Best States ------------- Heat Dissipation 78 Coolant Potential 100 Energy Generation 59 Energy Capacity 2220 Matter Stores 550 Matter Capacity 550 Sight Range 16 Terrain Scan Density 10 Power Amplification 60 Additional Mass Support 9 Base Temperature (-) 200 Armor Coverage 750 Resistance: KI 25 Resistance: TH 25 Weapon Shielding 66 Phase Shifting 10 Evasion (%) 54 Targeting Accuracy 10 Target Analysis 8 Recoil Reduction 3 Particle Charging 20 Kinecelleration 40 Salvage Targeting 2 Offensive Hacking 14 Item Schematics ----------------- Lgt. Regenerative Plating | -7/Data Miner | Free Cmb. Gravmag System | -7/Data Miner | Free Combat Drone Bay | -7/Data Miner | Free Exp. Cesium-ion Thruster | -7/Data Miner | Free Exp. Terrain Scan Processor | -7/Data Miner | Free Exp. ECM Suite | -7/Data Miner | Free Mni. Smartbomb Launcher | -7/Data Miner | Free Robot Schematics ------------------ S-27 Virus | -7/Data Miner | Free G-50 Soldier | -7/Data Miner | Free G-67 Veteran | -7/Data Miner | Free X-72 Disruptor | -7/Data Miner | Free P-70 Sage | -7/Data Miner | Free I-36 Angel | -7/Data Miner | Free Fabricated ------------ Nothing Alien Tech Used ----------------- None Achievements -------------- Executioner Challenges ------------ None Game ------ Seed ThunderOverloadConverter Manual? 0 Play Time 01:21:35 Cumulative 134.6 hours Start 2020.08.25 @ 16:43:50 End 2020.08.26 @ 09:41:55 Sessions 3 Manual Loads 0 Difficulty Rogue Special Mode None Game No. 187 Rogue 144 Adventurer 3 Explorer 40 Win Type - Total 2 Types 1/1/0/0/0/0/0 Lore% 50 Gallery% 73 Achievement% 52 Wizard Run 0 Options --------- ASCII 0 Keyboard 0 Movement Mouse Keybinds 0 Fullscreen 2 Font 18/SmallcapsGlow Map View 76x50 Tactical HUD 1 Map Filters NONE Filters NONE Steam 1 RUN: d0d557fd-1b25-4341-bc6a-652e02aba79e